[Event "Titled Tuesday Blitz March 22 Late 2022"]
[White "Fishbein, Alexander"]
[Black "Bluebaum, Matthias"]
[WhiteFideId "2000377"]
[BlackFideId "24651516"]
[WhiteElo "2442"]
[BlackElo "2550"]
[Result "0-1"]
[Round "03"]
[TimeControl "180+1"]
[Date "2022.03.22"]
[WhiteClock "0:00:03"]
[BlackClock "0:00:21"]

1. e4 {[%clk 0:02:59]}  c6 {[%clk 0:03:00]} 2. d4 {[%clk 0:02:59]}  d5 {[%clk 0:03:01]} 3. Nc3 {[%clk 0:02:59]}  dxe4 {[%clk 0:03:01]} 4. Nxe4 {[%clk 0:02:59]}  Nf6 {[%clk 0:03:02]} 5. Qd3 {[%clk 0:02:58]}  g6 {[%clk 0:02:52]} 6. Nf3 {[%clk 0:02:51]}  Bg7 {[%clk 0:02:52]} 7. Nxf6+ {[%clk 0:02:48]}  exf6 {[%clk 0:02:52]} 8. Qe3+ {[%clk 0:02:41]}  Be6 {[%clk 0:02:40]} 9. Bc4 {[%clk 0:02:38]}  Qd6 {[%clk 0:02:39]} 10. O-O {[%clk 0:02:35]}  O-O {[%clk 0:02:38]} 11. Bxe6 {[%clk 0:02:35]}  fxe6 {[%clk 0:02:39]} 12. Qb3 {[%clk 0:02:33]}  b6 {[%clk 0:02:34]} 13. Re1 {[%clk 0:02:32]}  Re8 {[%clk 0:02:34]} 14. Bd2 {[%clk 0:02:26]}  Nd7 {[%clk 0:02:34]} 15. c4 {[%clk 0:02:25]}  c5 {[%clk 0:02:25]} 16. Bc3 {[%clk 0:02:19]}  cxd4 {[%clk 0:02:21]} 17. Nxd4 {[%clk 0:02:18]}  Nc5 {[%clk 0:02:18]} 18. Qc2 {[%clk 0:02:17]}  e5 {[%clk 0:01:53]} 19. Nb5 {[%clk 0:02:17]}  Qc6 {[%clk 0:01:54]} 20. Rad1 {[%clk 0:02:07]}  Bf8 {[%clk 0:01:54]} 21. b4 {[%clk 0:01:50]}  Ne6 {[%clk 0:01:52]} 22. Qb3 {[%clk 0:01:41]}  a6 {[%clk 0:01:42]} 23. Na3 {[%clk 0:01:41]}  Kg7 {[%clk 0:01:41]} 24. Nc2 {[%clk 0:01:28]}  Rad8 {[%clk 0:01:30]} 25. Ne3 {[%clk 0:01:27]}  Nf4 {[%clk 0:01:29]} 26. Nd5 {[%clk 0:01:21]}  b5 {[%clk 0:01:17]} 27. cxb5 {[%clk 0:01:13]}  axb5 {[%clk 0:01:08]} 28. Nxf4 {[%clk 0:01:12]}  exf4 {[%clk 0:01:09]} 29. Rxd8 {[%clk 0:01:06]}  Rxd8 {[%clk 0:01:10]} 30. Re6 {[%clk 0:00:41]}  Qxe6 {[%clk 0:00:58]} 31. Qxe6 {[%clk 0:00:40]}  Rd1+ {[%clk 0:00:59]} 32. Qe1 {[%clk 0:00:24]}  Rxe1+ {[%clk 0:00:59]} 33. Bxe1 {[%clk 0:00:25]}  Kf7 {[%clk 0:00:59]} 34. f3 {[%clk 0:00:21]}  Ke6 {[%clk 0:00:57]} 35. Kf1 {[%clk 0:00:20]}  Kd5 {[%clk 0:00:58]} 36. Ke2 {[%clk 0:00:20]}  Kc4 {[%clk 0:00:58]} 37. Bd2 {[%clk 0:00:19]}  g5 {[%clk 0:00:55]} 38. a3 {[%clk 0:00:19]}  Kb3 {[%clk 0:00:46]} 39. Kd3 {[%clk 0:00:18]}  Kxa3 {[%clk 0:00:46]} 40. Bc3 {[%clk 0:00:17]}  f5 {[%clk 0:00:47]} 41. Bf6 {[%clk 0:00:12]}  h6 {[%clk 0:00:47]} 42. h4 {[%clk 0:00:12]}  gxh4 {[%clk 0:00:44]} 43. Be5 {[%clk 0:00:09]}  Kxb4 {[%clk 0:00:40]} 44. Bxf4 {[%clk 0:00:09]}  Kb3 {[%clk 0:00:39]} 45. Kd4 {[%clk 0:00:06]}  Bg7+ {[%clk 0:00:39]} 46. Kd5 {[%clk 0:00:06]}  Kc3 {[%clk 0:00:34]} 47. Bd6 {[%clk 0:00:05]}  Bd4 {[%clk 0:00:20]} 48. Ke6 {[%clk 0:00:03]}  f4 {[%clk 0:00:20]} 49. Bxf4 {[%clk 0:00:03]}  b4 {[%clk 0:00:21]} 0-1


[Site "https://www.chess.com"]

[Event "Titled Tuesday Blitz March 22 Late 2022"]
[White "Goltsev, Dmitry"]
[Black "Mikhalsky, Vladimir"]
[WhiteFideId "24176710"]
[BlackFideId "14144352"]
[WhiteElo "2273"]
[BlackElo "2301"]
[Result "1/2-1/2"]
[Round "03"]
[TimeControl "180+1"]
[Date "2022.03.22"]
[WhiteClock "0:01:49"]
[BlackClock "0:00:15"]

1. e4 {[%clk 0:02:59]}  g6 {[%clk 0:02:59]} 2. Nf3 {[%clk 0:02:58]}  Bg7 {[%clk 0:02:59]} 3. Nc3 {[%clk 0:02:59]}  d6 {[%clk 0:02:58]} 4. d4 {[%clk 0:03:00]}  a6 {[%clk 0:02:58]} 5. h3 {[%clk 0:03:00]}  Nd7 {[%clk 0:02:55]} 6. a3 {[%clk 0:03:00]}  b5 {[%clk 0:02:55]} 7. Bd3 {[%clk 0:03:00]}  c5 {[%clk 0:02:54]} 8. Be3 {[%clk 0:02:59]}  Bb7 {[%clk 0:02:52]} 9. O-O {[%clk 0:02:58]}  Ngf6 {[%clk 0:02:50]} 10. dxc5 {[%clk 0:02:56]}  Nxc5 {[%clk 0:02:48]} 11. e5 {[%clk 0:02:50]}  Nfe4 {[%clk 0:02:29]} 12. Nxe4 {[%clk 0:02:43]}  Nxe4 {[%clk 0:02:25]} 13. exd6 {[%clk 0:02:43]}  Qxd6 {[%clk 0:02:21]} 14. c3 {[%clk 0:02:39]}  Rd8 {[%clk 0:02:14]} 15. Bc2 {[%clk 0:02:34]}  O-O {[%clk 0:02:08]} 16. Qe2 {[%clk 0:02:34]}  Bd5 {[%clk 0:01:57]} 17. Rfd1 {[%clk 0:02:34]}  Qc6 {[%clk 0:01:55]} 18. Bd4 {[%clk 0:02:34]}  Nf6 {[%clk 0:01:38]} 19. Ne5 {[%clk 0:02:29]}  Qb7 {[%clk 0:01:38]} 20. f3 {[%clk 0:02:29]}  Nh5 {[%clk 0:01:35]} 21. Qe3 {[%clk 0:02:24]}  f6 {[%clk 0:01:30]} 22. Nd3 {[%clk 0:02:23]}  e5 {[%clk 0:01:29]} 23. Bc5 {[%clk 0:02:23]}  Rfe8 {[%clk 0:01:26]} 24. Nb4 {[%clk 0:02:23]}  Bc4 {[%clk 0:01:13]} 25. Be4 {[%clk 0:02:20]}  Qc8 {[%clk 0:01:13]} 26. Bb6 {[%clk 0:02:18]}  Rxd1+ {[%clk 0:01:11]} 27. Rxd1 {[%clk 0:02:19]}  Nf4 {[%clk 0:01:08]} 28. Nc6 {[%clk 0:02:18]}  Bh6 {[%clk 0:01:02]} 29. Kh2 {[%clk 0:02:17]}  Kh8 {[%clk 0:00:52]} 30. Qc5 {[%clk 0:02:16]}  Ne6 {[%clk 0:00:44]} 31. Qd6 {[%clk 0:02:15]}  Bf8 {[%clk 0:00:39]} 32. Qd7 {[%clk 0:02:14]}  Qxd7 {[%clk 0:00:38]} 33. Rxd7 {[%clk 0:02:15]}  f5 {[%clk 0:00:27]} 34. Bc2 {[%clk 0:02:12]}  Nc5 {[%clk 0:00:25]} 35. Ra7 {[%clk 0:02:08]}  e4 {[%clk 0:00:23]} 36. fxe4 {[%clk 0:02:07]}  fxe4 {[%clk 0:00:23]} 37. b4 {[%clk 0:02:04]}  e3 {[%clk 0:00:22]} 38. Bd1 {[%clk 0:02:02]}  Ne4 {[%clk 0:00:21]} 39. Bd4+ {[%clk 0:02:00]}  Kg8 {[%clk 0:00:20]} 40. Ne5 {[%clk 0:02:00]}  e2 {[%clk 0:00:18]} 41. Bxe2 {[%clk 0:01:57]}  Bxe2 {[%clk 0:00:18]} 42. Rxa6 {[%clk 0:01:58]}  Bc4 {[%clk 0:00:16]} 43. Ra7 {[%clk 0:01:56]}  Bd6 {[%clk 0:00:16]} 44. g4 {[%clk 0:01:45]}  Bxe5+ {[%clk 0:00:16]} 45. Bxe5 {[%clk 0:01:45]}  Rxe5 {[%clk 0:00:16]} 46. Kg2 {[%clk 0:01:46]}  Nxc3 {[%clk 0:00:16]} 47. Kf3 {[%clk 0:01:47]}  Na4 {[%clk 0:00:16]} 48. Kf4 {[%clk 0:01:47]}  Rd5 {[%clk 0:00:17]} 49. h4 {[%clk 0:01:47]}  h6 {[%clk 0:00:16]} 50. h5 {[%clk 0:01:45]}  gxh5 {[%clk 0:00:16]} 51. gxh5 {[%clk 0:01:45]}  Rxh5 {[%clk 0:00:17]} 52. Kg4 {[%clk 0:01:46]}  Rg5+ {[%clk 0:00:17]} 53. Kf4 {[%clk 0:01:46]}  Rg7 {[%clk 0:00:17]} 54. Ra8+ {[%clk 0:01:46]}  Kh7 {[%clk 0:00:18]} 55. Kf5 {[%clk 0:01:47]}  Nc3 {[%clk 0:00:18]} 56. Rd8 {[%clk 0:01:48]}  Nd5 {[%clk 0:00:18]} 57. Ke6 {[%clk 0:01:46]}  Ne3+ {[%clk 0:00:17]} 58. Ke5 {[%clk 0:01:47]}  Nc2 {[%clk 0:00:17]} 59. Rd2 {[%clk 0:01:46]}  Nxa3 {[%clk 0:00:17]} 60. Kd6 {[%clk 0:01:46]}  h5 {[%clk 0:00:17]} 61. Kc6 {[%clk 0:01:46]}  Rg6+ {[%clk 0:00:17]} 62. Kc5 {[%clk 0:01:46]}  Kh6 {[%clk 0:00:17]} 63. Rh2 {[%clk 0:01:47]}  Kg5 {[%clk 0:00:17]} 64. Rg2+ {[%clk 0:01:47]}  Kh6 {[%clk 0:00:17]} 65. Rh2 {[%clk 0:01:48]}  Rg5+ {[%clk 0:00:17]} 66. Kd4 {[%clk 0:01:47]}  Nb1 {[%clk 0:00:18]} 67. Ke3 {[%clk 0:01:45]}  Nc3 {[%clk 0:00:17]} 68. Kf4 {[%clk 0:01:44]}  Nd5+ {[%clk 0:00:17]} 69. Ke4 {[%clk 0:01:44]}  Nxb4 {[%clk 0:00:17]} 70. Rf2 {[%clk 0:01:44]}  Nc6 {[%clk 0:00:17]} 71. Rf6+ {[%clk 0:01:45]}  Rg6 {[%clk 0:00:18]} 72. Rf8 {[%clk 0:01:45]}  h4 {[%clk 0:00:18]} 73. Kf5 {[%clk 0:01:45]}  Bd3+ {[%clk 0:00:16]} 74. Kf4 {[%clk 0:01:45]}  Kh5 {[%clk 0:00:15]} 75. Rh8+ {[%clk 0:01:45]}  Rh6 {[%clk 0:00:16]} 76. Rg8 {[%clk 0:01:46]}  h3 {[%clk 0:00:16]} 77. Rg5+ {[%clk 0:01:46]}  Kh4 {[%clk 0:00:14]} 78. Rg4+ {[%clk 0:01:46]}  Kh5 {[%clk 0:00:14]} 79. Rg5+ {[%clk 0:01:47]}  Kh4 {[%clk 0:00:15]} 80. Rg4+ {[%clk 0:01:48]}  Kh5 {[%clk 0:00:15]} 81. Rg5+ {[%clk 0:01:49]} 1/2-1/2


[Site "https://www.chess.com"]

[Event "Titled Tuesday Blitz March 22 Late 2022"]
[White "Hambleton, Aman"]
[Black "Matlakov, Maxim"]
[WhiteFideId "2606577"]
[BlackFideId "4168003"]
[WhiteElo "2552"]
[BlackElo "2669"]
[Result "0-1"]
[Round "03"]
[TimeControl "180+1"]
[Date "2022.03.22"]
[WhiteClock "0:00:01"]
[BlackClock "0:00:42"]

1. d4 {[%clk 0:03:00]}  Nf6 {[%clk 0:02:59]} 2. c4 {[%clk 0:02:57]}  e6 {[%clk 0:02:59]} 3. Nc3 {[%clk 0:02:41]}  Bb4 {[%clk 0:02:57]} 4. Qc2 {[%clk 0:02:38]}  b6 {[%clk 0:02:47]} 5. e4 {[%clk 0:02:28]}  c5 {[%clk 0:02:47]} 6. d5 {[%clk 0:02:13]}  Qe7 {[%clk 0:02:47]} 7. Be2 {[%clk 0:01:33]}  d6 {[%clk 0:02:28]} 8. Nf3 {[%clk 0:01:27]}  Bxc3+ {[%clk 0:02:27]} 9. Qxc3 {[%clk 0:01:12]}  O-O {[%clk 0:02:26]} 10. Bg5 {[%clk 0:00:53]}  Nbd7 {[%clk 0:02:25]} 11. Nd2 {[%clk 0:00:52]}  exd5 {[%clk 0:02:16]} 12. cxd5 {[%clk 0:00:35]}  h6 {[%clk 0:02:15]} 13. Bh4 {[%clk 0:00:16]}  Re8 {[%clk 0:02:15]} 14. O-O {[%clk 0:00:11]}  Nxe4 {[%clk 0:02:06]} 15. Bxe7 {[%clk 0:00:03]}  Nxc3 {[%clk 0:02:04]} 16. bxc3 {[%clk 0:00:03]}  Rxe7 {[%clk 0:02:04]} 17. Rfe1 {[%clk 0:00:02]}  Bb7 {[%clk 0:02:02]} 18. c4 {[%clk 0:00:02]}  Rae8 {[%clk 0:02:01]} 19. Kf1 {[%clk 0:00:03]}  g5 {[%clk 0:01:48]} 20. a4 {[%clk 0:00:03]}  a5 {[%clk 0:01:40]} 21. Rab1 {[%clk 0:00:03]}  Kg7 {[%clk 0:01:36]} 22. f3 {[%clk 0:00:04]}  Bc8 {[%clk 0:01:35]} 23. Kf2 {[%clk 0:00:04]}  Ne5 {[%clk 0:01:33]} 24. Nf1 {[%clk 0:00:04]}  f5 {[%clk 0:01:29]} 25. Ng3 {[%clk 0:00:02]}  Rb7 {[%clk 0:01:18]} 26. Rb2 {[%clk 0:00:02]}  Bd7 {[%clk 0:01:16]} 27. Reb1 {[%clk 0:00:02]}  Reb8 {[%clk 0:01:16]} 28. Ra1 {[%clk 0:00:03]}  Kf6 {[%clk 0:01:15]} 29. Nf1 {[%clk 0:00:03]}  Be8 {[%clk 0:01:14]} 30. Nd2 {[%clk 0:00:02]}  Bg6 {[%clk 0:01:13]} 31. g3 {[%clk 0:00:02]}  Re7 {[%clk 0:01:09]} 32. f4 {[%clk 0:00:02]}  Nd7 {[%clk 0:01:05]} 33. Rab1 {[%clk 0:00:02]}  Rbe8 {[%clk 0:01:05]} 34. Nf1 {[%clk 0:00:02]}  Re4 {[%clk 0:01:02]} 35. Bd3 {[%clk 0:00:02]}  Rd4 {[%clk 0:01:02]} 36. Rd2 {[%clk 0:00:02]}  gxf4 {[%clk 0:00:58]} 37. gxf4 {[%clk 0:00:03]}  Rxf4+ {[%clk 0:00:58]} 38. Kg3 {[%clk 0:00:04]}  Rg4+ {[%clk 0:00:57]} 39. Kf2 {[%clk 0:00:04]}  f4 {[%clk 0:00:55]} 40. Bxg6 {[%clk 0:00:04]}  Rxg6 {[%clk 0:00:56]} 41. Rd3 {[%clk 0:00:03]}  Ne5 {[%clk 0:00:53]} 42. Rc3 {[%clk 0:00:03]}  Ng4+ {[%clk 0:00:52]} 43. Kf3 {[%clk 0:00:03]}  Kf5 {[%clk 0:00:48]} 44. h3 {[%clk 0:00:02]}  Ne5+ {[%clk 0:00:47]} 45. Kf2 {[%clk 0:00:03]}  Reg8 {[%clk 0:00:46]} 46. Rxb6 {[%clk 0:00:02]}  Rg2+ {[%clk 0:00:46]} 47. Ke1 {[%clk 0:00:03]}  Ke4 {[%clk 0:00:45]} 48. Rxd6 {[%clk 0:00:03]}  Nd3+ {[%clk 0:00:45]} 49. Kd1 {[%clk 0:00:02]}  Kd4 {[%clk 0:00:45]} 50. Rb3 {[%clk 0:00:01]}  Rg1 {[%clk 0:00:44]} 51. Ke2 {[%clk 0:00:01]}  R8g2+ {[%clk 0:00:42]} 0-1


[Site "https://www.chess.com"]

[Event "Titled Tuesday Blitz March 22 Late 2022"]
[White "Hartikainen, Jarmo"]
[Black "Avazkhonov, Alikhon"]
[WhiteFideId "503134"]
[BlackFideId "14208504"]
[WhiteElo "2104"]
[BlackElo "1739"]
[Result "0-1"]
[Round "03"]
[TimeControl "180+1"]
[Date "2022.03.22"]
[WhiteClock "0:00:01"]
[BlackClock "0:00:05"]

1. e4 {[%clk 0:03:00]}  c5 {[%clk 0:02:56]} 2. Nf3 {[%clk 0:02:59]}  d6 {[%clk 0:02:57]} 3. d4 {[%clk 0:02:59]}  cxd4 {[%clk 0:02:57]} 4. Nxd4 {[%clk 0:03:00]}  Nf6 {[%clk 0:02:58]} 5. Nc3 {[%clk 0:03:00]}  a6 {[%clk 0:02:58]} 6. Bg5 {[%clk 0:02:59]}  e6 {[%clk 0:02:58]} 7. f4 {[%clk 0:02:59]}  h6 {[%clk 0:02:59]} 8. Bh4 {[%clk 0:02:57]}  Be7 {[%clk 0:02:59]} 9. Qf3 {[%clk 0:02:54]}  Nbd7 {[%clk 0:02:57]} 10. O-O-O {[%clk 0:02:54]}  Qc7 {[%clk 0:02:56]} 11. Bf2 {[%clk 0:02:41]}  Rb8 {[%clk 0:02:36]} 12. Bd3 {[%clk 0:02:37]}  b5 {[%clk 0:02:35]} 13. Rhg1 {[%clk 0:02:10]}  Bb7 {[%clk 0:02:31]} 14. g4 {[%clk 0:02:09]}  g5 {[%clk 0:02:00]} 15. h4 {[%clk 0:01:40]}  gxf4 {[%clk 0:01:30]} 16. Qxf4 {[%clk 0:01:37]}  e5 {[%clk 0:01:23]} 17. Qf5 {[%clk 0:01:28]}  exd4 {[%clk 0:01:20]} 18. Bxd4 {[%clk 0:01:29]}  Ne5 {[%clk 0:01:08]} 19. g5 {[%clk 0:01:20]}  hxg5 {[%clk 0:00:50]} 20. hxg5 {[%clk 0:01:18]}  Bc8 {[%clk 0:00:50]} 21. Qf2 {[%clk 0:01:02]}  Nfg4 {[%clk 0:00:35]} 22. Qe2 {[%clk 0:00:57]}  Bxg5+ {[%clk 0:00:24]} 23. Kb1 {[%clk 0:00:56]}  Rh2 {[%clk 0:00:23]} 24. Rg2 {[%clk 0:00:56]}  Rxg2 {[%clk 0:00:22]} 25. Qxg2 {[%clk 0:00:57]}  Be6 {[%clk 0:00:21]} 26. Be2 {[%clk 0:00:51]}  Qe7 {[%clk 0:00:19]} 27. Rg1 {[%clk 0:00:46]}  Be3 {[%clk 0:00:17]} 28. Bxe3 {[%clk 0:00:36]}  Nxe3 {[%clk 0:00:18]} 29. Qg8+ {[%clk 0:00:35]}  Qf8 {[%clk 0:00:18]} 30. Nd5 {[%clk 0:00:34]}  Nxd5 {[%clk 0:00:15]} 31. exd5 {[%clk 0:00:31]}  Bxd5 {[%clk 0:00:16]} 32. Bh5 {[%clk 0:00:29]}  Be6 {[%clk 0:00:15]} 33. Qh7 {[%clk 0:00:27]}  Kd7 {[%clk 0:00:13]} 34. Qe4 {[%clk 0:00:18]}  Qh8 {[%clk 0:00:12]} 35. Be2 {[%clk 0:00:14]}  Qc8 {[%clk 0:00:11]} 36. b3 {[%clk 0:00:12]}  Qc5 {[%clk 0:00:10]} 37. Rf1 {[%clk 0:00:12]}  Rc8 {[%clk 0:00:09]} 38. Bd3 {[%clk 0:00:08]}  Nxd3 {[%clk 0:00:08]} 39. Qxd3 {[%clk 0:00:09]}  Qe5 {[%clk 0:00:08]} 40. Rg1 {[%clk 0:00:03]}  Rc3 {[%clk 0:00:08]} 41. Qd2 {[%clk 0:00:02]}  Qe3 {[%clk 0:00:07]} 42. Rd1 {[%clk 0:00:02]}  Qxd2 {[%clk 0:00:07]} 43. Rxd2 {[%clk 0:00:03]}  b4 {[%clk 0:00:08]} 44. Kb2 {[%clk 0:00:03]}  a5 {[%clk 0:00:08]} 45. a3 {[%clk 0:00:04]}  Kc6 {[%clk 0:00:08]} 46. axb4 {[%clk 0:00:04]}  axb4 {[%clk 0:00:09]} 47. Rd4 {[%clk 0:00:05]}  Kc5 {[%clk 0:00:10]} 48. Rh4 {[%clk 0:00:04]}  d5 {[%clk 0:00:10]} 49. Rh5 {[%clk 0:00:03]}  Kd4 {[%clk 0:00:09]} 50. Rh4+ {[%clk 0:00:03]}  Kc5 {[%clk 0:00:09]} 51. Rh5 {[%clk 0:00:04]}  Rf3 {[%clk 0:00:07]} 52. Rh4 {[%clk 0:00:04]}  Bf5 {[%clk 0:00:06]} 53. Rh2 {[%clk 0:00:03]}  Be4 {[%clk 0:00:06]} 54. Rd2 {[%clk 0:00:03]}  f5 {[%clk 0:00:06]} 55. Kc1 {[%clk 0:00:02]}  d4 {[%clk 0:00:06]} 56. Kb2 {[%clk 0:00:01]}  d3 {[%clk 0:00:05]} 57. Kc1 {[%clk 0:00:01]}  dxc2 {[%clk 0:00:05]} 0-1


[Site "https://www.chess.com"]

[Event "Titled Tuesday Blitz March 22 Late 2022"]
[White "Havas, Ladislav"]
[Black "Piliczewski, Bogusz"]
[WhiteFideId "14501090"]
[BlackFideId "1104144"]
[WhiteElo "2206"]
[BlackElo "1896"]
[Result "1-0"]
[Round "03"]
[TimeControl "180+1"]
[Date "2022.03.22"]
[WhiteClock "0:00:24"]
[BlackClock "0:00:13"]

1. d4 {[%clk 0:02:58]}  d5 {[%clk 0:02:58]} 2. Bf4 {[%clk 0:02:58]}  Nf6 {[%clk 0:02:57]} 3. e3 {[%clk 0:02:58]}  Bf5 {[%clk 0:02:57]} 4. Bd3 {[%clk 0:02:56]}  Bxd3 {[%clk 0:02:55]} 5. Qxd3 {[%clk 0:02:57]}  c6 {[%clk 0:02:54]} 6. Nf3 {[%clk 0:02:57]}  e6 {[%clk 0:02:54]} 7. O-O {[%clk 0:02:56]}  Bd6 {[%clk 0:02:54]} 8. Bg3 {[%clk 0:02:55]}  Bxg3 {[%clk 0:02:53]} 9. hxg3 {[%clk 0:02:55]}  O-O {[%clk 0:02:52]} 10. Nbd2 {[%clk 0:02:55]}  Nbd7 {[%clk 0:02:51]} 11. c3 {[%clk 0:02:53]}  Qe7 {[%clk 0:02:46]} 12. e4 {[%clk 0:02:54]}  dxe4 {[%clk 0:02:43]} 13. Nxe4 {[%clk 0:02:53]}  Nxe4 {[%clk 0:02:39]} 14. Qxe4 {[%clk 0:02:54]}  Rfe8 {[%clk 0:02:39]} 15. Rfe1 {[%clk 0:02:53]}  Rad8 {[%clk 0:02:32]} 16. Rad1 {[%clk 0:02:52]}  Qf6 {[%clk 0:02:28]} 17. Ne5 {[%clk 0:02:51]}  Nxe5 {[%clk 0:02:25]} 18. dxe5 {[%clk 0:02:49]}  Qe7 {[%clk 0:02:19]} 19. c4 {[%clk 0:02:42]}  Rxd1 {[%clk 0:02:17]} 20. Rxd1 {[%clk 0:02:41]}  Rd8 {[%clk 0:02:17]} 21. Rd4 {[%clk 0:02:40]}  c5 {[%clk 0:02:05]} 22. Rxd8+ {[%clk 0:02:37]}  Qxd8 {[%clk 0:02:04]} 23. Kh2 {[%clk 0:02:09]}  Qd1 {[%clk 0:01:56]} 24. g4 {[%clk 0:02:05]}  h5 {[%clk 0:01:48]} 25. Qxb7 {[%clk 0:01:52]}  hxg4 {[%clk 0:01:42]} 26. Qc8+ {[%clk 0:01:46]}  Kh7 {[%clk 0:01:41]} 27. Qxc5 {[%clk 0:01:46]}  Qd2 {[%clk 0:01:31]} 28. Kg3 {[%clk 0:01:20]}  Qxb2 {[%clk 0:01:24]} 29. Kxg4 {[%clk 0:01:20]}  Qxa2 {[%clk 0:01:20]} 30. Qd4 {[%clk 0:01:17]}  a5 {[%clk 0:01:17]} 31. c5 {[%clk 0:01:16]}  a4 {[%clk 0:01:16]} 32. Qe4+ {[%clk 0:01:11]}  g6 {[%clk 0:01:10]} 33. c6 {[%clk 0:01:10]}  Qxf2 {[%clk 0:00:54]} 34. c7 {[%clk 0:01:04]}  Qc5 {[%clk 0:00:52]} 35. Qb7 {[%clk 0:00:59]}  Qd4+ {[%clk 0:00:49]} 36. Kh3 {[%clk 0:00:58]}  Qe3+ {[%clk 0:00:47]} 37. g3 {[%clk 0:00:54]}  Qh6+ {[%clk 0:00:45]} 38. Kg2 {[%clk 0:00:52]}  Qd2+ {[%clk 0:00:45]} 39. Kg1 {[%clk 0:00:44]}  Qe1+ {[%clk 0:00:44]} 40. Kh2 {[%clk 0:00:43]}  Qd2+ {[%clk 0:00:41]} 41. Kh3 {[%clk 0:00:38]}  Qh6+ {[%clk 0:00:38]} 42. Kg4 {[%clk 0:00:35]}  Qh5+ {[%clk 0:00:37]} 43. Kf4 {[%clk 0:00:36]}  Qf5+ {[%clk 0:00:36]} 44. Ke3 {[%clk 0:00:36]}  Qxe5+ {[%clk 0:00:36]} 45. Kd3 {[%clk 0:00:36]}  Qf5+ {[%clk 0:00:33]} 46. Kc4 {[%clk 0:00:34]}  Qc2+ {[%clk 0:00:28]} 47. Kb5 {[%clk 0:00:33]}  Qb3+ {[%clk 0:00:28]} 48. Ka6 {[%clk 0:00:32]}  Qc4+ {[%clk 0:00:27]} 49. Ka7 {[%clk 0:00:32]}  Qc5+ {[%clk 0:00:26]} 50. Kb8 {[%clk 0:00:32]}  Qd6 {[%clk 0:00:23]} 51. Ka8 {[%clk 0:00:28]}  a3 {[%clk 0:00:17]} 52. c8=Q {[%clk 0:00:27]}  a2 {[%clk 0:00:16]} 53. Qxf7+ {[%clk 0:00:27]}  Kh6 {[%clk 0:00:15]} 54. Qc1+ {[%clk 0:00:25]}  Kh5 {[%clk 0:00:14]} 55. Qh7+ {[%clk 0:00:24]}  Kg4 {[%clk 0:00:14]} 56. Qh4+ {[%clk 0:00:24]}  Kf5 {[%clk 0:00:13]} 57. Qhf4+ {[%clk 0:00:24]}  Qxf4 {[%clk 0:00:13]} 58. Qxf4# {[%clk 0:00:24]} 1-0


[Site "https://www.chess.com"]

[Event "Titled Tuesday Blitz March 22 Late 2022"]
[White "Issani, Nameer"]
[Black "Grigorov, Grigor"]
[WhiteFideId "2619130"]
[BlackFideId "2907313"]
[WhiteElo "2544"]
[BlackElo "2812"]
[Result "0-1"]
[Round "03"]
[TimeControl "180+1"]
[Date "2022.03.22"]
[WhiteClock "0:00:08"]
[BlackClock "0:00:11"]

1. d4 {[%clk 0:03:00]}  Nf6 {[%clk 0:02:59]} 2. c4 {[%clk 0:03:00]}  e6 {[%clk 0:02:59]} 3. Nc3 {[%clk 0:03:00]}  Bb4 {[%clk 0:02:59]} 4. e3 {[%clk 0:03:00]}  O-O {[%clk 0:02:58]} 5. Ne2 {[%clk 0:03:01]}  d5 {[%clk 0:02:57]} 6. a3 {[%clk 0:03:01]}  Be7 {[%clk 0:02:55]} 7. cxd5 {[%clk 0:03:01]}  Nxd5 {[%clk 0:02:51]} 8. e4 {[%clk 0:02:58]}  Nxc3 {[%clk 0:02:51]} 9. Nxc3 {[%clk 0:02:58]}  c5 {[%clk 0:02:51]} 10. d5 {[%clk 0:02:47]}  exd5 {[%clk 0:02:50]} 11. Nxd5 {[%clk 0:02:46]}  Nc6 {[%clk 0:02:50]} 12. Be2 {[%clk 0:02:37]}  Bf6 {[%clk 0:02:49]} 13. O-O {[%clk 0:02:36]}  Bd4 {[%clk 0:02:49]} 14. Qc2 {[%clk 0:02:29]}  Be6 {[%clk 0:02:45]} 15. Bc4 {[%clk 0:02:17]}  Ne5 {[%clk 0:02:43]} 16. Ba2 {[%clk 0:02:16]}  Qh4 {[%clk 0:02:34]} 17. Be3 {[%clk 0:01:53]}  Ng4 {[%clk 0:02:28]} 18. Bf4 {[%clk 0:01:48]}  Bxd5 {[%clk 0:02:22]} 19. Bg3 {[%clk 0:01:20]}  Qg5 {[%clk 0:02:12]} 20. Bxd5 {[%clk 0:01:17]}  h5 {[%clk 0:02:12]} 21. Qc1 {[%clk 0:01:09]}  Qe7 {[%clk 0:01:38]} 22. Qd2 {[%clk 0:01:03]}  Rad8 {[%clk 0:01:32]} 23. h3 {[%clk 0:00:57]}  Nf6 {[%clk 0:01:27]} 24. Rfe1 {[%clk 0:00:49]}  Nxd5 {[%clk 0:01:13]} 25. exd5 {[%clk 0:00:50]}  Qf6 {[%clk 0:01:13]} 26. Re2 {[%clk 0:00:34]}  Rxd5 {[%clk 0:01:11]} 27. Qc2 {[%clk 0:00:34]}  h4 {[%clk 0:01:04]} 28. Qe4 {[%clk 0:00:22]}  hxg3 {[%clk 0:00:32]} 29. Qxd5 {[%clk 0:00:22]}  gxf2+ {[%clk 0:00:32]} 30. Kf1 {[%clk 0:00:23]}  Qf4 {[%clk 0:00:19]} 31. g4 {[%clk 0:00:23]}  Qg3 {[%clk 0:00:18]} 32. Qg2 {[%clk 0:00:23]}  Qd3 {[%clk 0:00:18]} 33. Qe4 {[%clk 0:00:22]}  Qxh3+ {[%clk 0:00:17]} 34. Qg2 {[%clk 0:00:22]}  Qb3 {[%clk 0:00:17]} 35. Rc1 {[%clk 0:00:20]}  g6 {[%clk 0:00:15]} 36. g5 {[%clk 0:00:20]}  Kg7 {[%clk 0:00:15]} 37. Qe4 {[%clk 0:00:18]}  Rh8 {[%clk 0:00:14]} 38. Qg2 {[%clk 0:00:17]}  Rh5 {[%clk 0:00:13]} 39. Rcc2 {[%clk 0:00:11]}  Qd3 {[%clk 0:00:12]} 40. Rc1 {[%clk 0:00:11]}  Qf5 {[%clk 0:00:11]} 41. b4 {[%clk 0:00:08]}  Rxg5 {[%clk 0:00:11]} 42. Qh1 {[%clk 0:00:08]}  Rg1+ {[%clk 0:00:11]} 0-1


[Site "https://www.chess.com"]